fUSD/lending_fUSD_20250419
["ID","MTS","AMOUNT","RATE_DAILY","PERIOD"]
[358400241,1745067078694,-573.75276481,0.000699,120]
[358400242,1745067078704,-203.00831592,0.000699,120]
[358400243,1745067078715,-203.00831592,0.000699,120]
[358400244,1745067078724,-1000.0,0.000699,120]
[358400245,1745067078734,-1000.0,0.000699,120]
[358400246,1745067078744,-1224.5038057,0.00069922,6]
[358400247,1745067078755,-1013.5043927,0.00069922,6]
[358400248,1745067078764,-802.5049798,0.00069922,6]
[358400249,1745067078774,-591.5055668,0.00069922,6]
[358400250,1745067078784,-800.0,0.00069924,120]
[358400251,1745067078794,-150.0,0.00069952,30]
[358400252,1745067078803,-9000000.0,0.0006997,9]
[358400253,1745067078813,-151.0,0.0006997,120]
[358400254,1745067078822,-188.478393,0.0006997,120]
[358400255,1745067078832,-151.0,0.0006997,120]
[358400256,1745067078841,-151.0,0.0006997,120]
[358400257,1745067078851,-162.257349,0.0006997,120]
[358400258,1745067078860,-162.257349,0.0006997,120]
[358400259,1745067078871,-151.0,0.0006997,120]
[358400260,1745067078880,-1000.0,0.00069979,120]
[358400261,1745067078889,-2151.06,0.0006998,30]
[358400262,1745067078899,-615.00058622,0.00069989,120]
[358400263,1745067078909,-62899.91681434,0.0006999,120]
[358400264,1745067078918,-7768.55291447,0.0006999,120]
[358400265,1745067078927,-500.0,0.00069997,120]
[358400266,1745067078937,-438.07355082,0.00069999,7]
[358400267,1745067078947,-358.0484063,0.00069999,120]
[358400268,1745067078956,-430.48286128,0.00069999,120]
[358400269,1745067078966,-352.58779688,0.00069999,120]
[358400270,1745067078975,-384.02991162,0.00069999,120]
[358400271,1745067078985,-489.01726992,0.00069999,120]
[358400272,1745067078995,-405.44570902,0.00069999,31]
[358400273,1745067079004,-367.90785672,0.00069999,120]
[358400274,1745067079014,-683.87470646,0.00069999,120]
[358400275,1745067079024,-478.55574958,0.00069999,120]
[358400276,1745067079033,-683.87470646,0.00069999,120]
[358400277,1745067079043,-683.87470646,0.00069999,120]
[358400278,1745067079053,-683.87470646,0.00069999,120]
[358400279,1745067079063,-683.87470646,0.00069999,120]
[358400280,1745067079073,-683.87470646,0.00069999,120]
[358400281,1745067079083,-683.87470646,0.00069999,120]
[358400282,1745067079093,-683.87470646,0.00069999,120]
[358400283,1745067079103,-683.87470646,0.00069999,120]
[358400284,1745067079113,-683.87470646,0.00069999,120]
[358400285,1745067079123,-683.87470646,0.00069999,120]
[358400286,1745067079132,-683.87470646,0.00069999,120]
[358400287,1745067079142,-683.87470646,0.00069999,120]
[358400288,1745067079151,-683.87470646,0.00069999,120]
[358400289,1745067079161,-683.87470646,0.00069999,120]
[358400290,1745067079172,-683.87470646,0.00069999,120]
[358400291,1745067079182,-683.87470646,0.00069999,120]
[358400292,1745067079191,-683.87470646,0.00069999,120]
[358400293,1745067079201,-683.87470646,0.00069999,120]
[358400294,1745067079211,-683.87470646,0.00069999,120]
[358400295,1745067079221,-683.87470646,0.00069999,120]
[358400296,1745067079231,-683.87470646,0.00069999,120]
[358400297,1745067079240,-683.87470646,0.00069999,120]
[358400298,1745067079251,-683.87470646,0.00069999,120]
[358400299,1745067079261,-683.87470646,0.00069999,120]
[358400300,1745067079271,-683.87470646,0.00069999,120]
[358400301,1745067079281,-683.87470646,0.00069999,120]
[358400302,1745067079291,-683.87470646,0.00069999,120]
[358400303,1745067079300,-683.87470646,0.00069999,120]
[358400304,1745067079310,-683.87470646,0.00069999,120]
[358400305,1745067079320,-683.87470646,0.00069999,120]
[358400306,1745067079330,-683.87470646,0.00069999,120]
[358400307,1745067079339,-683.87470646,0.00069999,120]
[358400308,1745067079349,-683.87470646,0.00069999,120]
[358400309,1745067079359,-683.87470646,0.00069999,120]
[358400310,1745067079368,-683.87470646,0.00069999,120]
[358400311,1745067079378,-683.87470646,0.00069999,120]
[358400312,1745067079388,-683.87470646,0.00069999,120]
[358400313,1745067079397,-683.87470646,0.00069999,120]
[358400314,1745067079407,-683.87470646,0.00069999,120]
[358400315,1745067079417,-683.87470646,0.00069999,120]
[358400316,1745067079427,-683.87470646,0.00069999,120]
[358400317,1745067079437,-683.87470646,0.00069999,120]
[358400318,1745067079447,-683.87470646,0.00069999,120]
[358400319,1745067079457,-683.87470646,0.00069999,120]
[358400320,1745067079467,-683.87470646,0.00069999,120]
[358400321,1745067079477,-683.87470646,0.00069999,120]
[358400322,1745067079487,-683.87470646,0.00069999,120]
[358400323,1745067079496,-683.87470646,0.00069999,120]
[358400324,1745067079506,-683.87470646,0.00069999,120]
[358400325,1745067079515,-683.87470646,0.00069999,120]
[358400326,1745067079525,-683.87470646,0.00069999,120]
[358400327,1745067079535,-664.87818684,0.00069999,120]
[358400328,1745067079544,-664.87818684,0.00069999,120]
[358400329,1745067079554,-664.87818684,0.00069999,120]
[358400330,1745067079564,-664.87818684,0.00069999,120]
[358400331,1745067079574,-664.87818684,0.00069999,120]
[358400332,1745067079583,-664.87818684,0.00069999,120]
[358400333,1745067079593,-664.87818684,0.00069999,120]
[358400334,1745067079606,-664.87818684,0.00069999,120]
[358400335,1745067079615,-664.87818684,0.00069999,120]
[358400336,1745067079625,-664.87818684,0.00069999,120]
[358400337,1745067079635,-664.87818684,0.00069999,120]
[358400338,1745067079646,-664.87818684,0.00069999,120]
[358400339,1745067079655,-664.87818684,0.00069999,120]
[358400340,1745067079665,-664.87818684,0.00069999,120]
[358400341,1745067079675,-664.87818684,0.00069999,120]
[358400342,1745067079686,-664.87818684,0.00069999,120]
[358400343,1745067079697,-664.87818684,0.00069999,120]
[358400344,1745067079707,-664.87818679,0.00069999,120]
[358400345,1745067079717,-1110.76707121,0.00069999,120]
[358400346,1745067079728,-1110.76707121,0.00069999,120]
[358400347,1745067079738,-1110.76707121,0.00069999,120]
[358400348,1745067079747,-1110.76707121,0.00069999,120]
[358400349,1745067079757,-1110.76707121,0.00069999,120]
[358400350,1745067079767,-1110.76707121,0.00069999,120]
[358400351,1745067079779,-1110.76707121,0.00069999,120]
[358400352,1745067079800,-1110.76707121,0.00069999,120]
[358400353,1745067079810,-2693.92329798,0.00069999,30]
[358400354,1745067079821,-50000.0,0.0007,70]
[358400355,1745067079831,-900.0,0.0007,71]
[358400356,1745067079840,-100000.0,0.0007,5]
[358400357,1745067079850,-9183.3741607,0.0007,120]
[358400358,1745067079860,-1000.0,0.0007,120]
[358400359,1745067079870,-1000000.0,0.0007,120]
[358400360,1745067079880,-1000000.0,0.0007,120]
[358400361,1745067079889,-1000000.0,0.0007,120]
[358400362,1745067079899,-1000000.0,0.0007,120]
[358400363,1745067079909,-1000000.0,0.0007,120]
[358400364,1745067079919,-1000000.0,0.0007,120]
[358400365,1745067079928,-5000.0,0.0007,30]
[358400366,1745067079938,-170.0,0.0007,120]
[358400367,1745067079948,-2000.0,0.0007,120]
[358400368,1745067079957,-293.81,0.0007,60]
[358400369,1745067079968,-1000000.0,0.0007,120]
[358400370,1745067079978,-1800.86317198,0.0007,120]
[358400371,1745067079987,-500.0,0.0007,120]
[358400372,1745067079997,-250.0,0.0007,120]
[358400373,1745067080007,-2961.52,0.0007,60]
[358400374,1745067080017,-151.0,0.0007,120]
[358400375,1745067080027,-151.0,0.0007,120]
[358400376,1745067080037,-151.0,0.0007,120]
[358400377,1745067080046,-151.0,0.0007,120]
[358400378,1745067080056,-151.0,0.0007,120]
[358400379,1745067080066,-210.493144,0.0007,120]
[358400380,1745067080075,-151.0,0.0007,120]
[358400381,1745067080084,-151.0,0.0007,120]
[358400382,1745067080094,-151.0,0.0007,120]
[358400383,1745067080104,-162.257349,0.0007,120]
[358400384,1745067080115,-162.257349,0.0007,120]
[358400385,1745067080124,-162.257349,0.0007,120]
[358400386,1745067080134,-162.257349,0.0007,120]
[358400387,1745067080144,-162.257349,0.0007,120]
[358400388,1745067080153,-162.257349,0.0007,120]
[358400389,1745067080163,-151.0,0.0007,120]
[358400390,1745067080172,-151.0,0.0007,120]
[358400391,1745067080181,-151.0,0.0007,120]
[358400392,1745067080191,-3469.77,0.0007,120]
[358400393,1745067080200,-9534.74,0.0007,5]
[358400394,1745067080209,-22257.550011,0.0007,120]
[358400395,1745067080219,-500.0,0.0007,4]
[358400396,1745067080229,-250000.0,0.0007,120]
[358400397,1745067080238,-500.0,0.0007,120]
[358400398,1745067080248,-2000.0,0.0007,120]
[358400399,1745067080258,-500.0,0.00070027,120]
[358400400,1745067080267,-150.0,0.00070099,120]
[358400401,1745067080277,-38037.30717966,0.0007015,2]
[358400402,1745067080287,-2700.0,0.00070205,120]
[358400403,1745067080297,-2700.0,0.00070327,120]
[358400404,1745067080306,-800.0,0.00070343,120]
[358400405,1745067080316,-2700.0,0.00070549,120]
[358400406,1745067080419,-2700.0,0.00070789,120]
[358400407,1745067080429,-800.0,0.000708,120]
[358400408,1745067080439,-500.0,0.00070889,120]
[358400409,1745067080448,-150.0,0.000709,120]
[358400410,1745067080458,-500.0,0.00070992,120]
[358400411,1745067080467,-262054.77031841,0.00070998,120]
[358400412,1745067080477,-249.443392,0.00070998,120]
[358400413,1745067080486,-162.257349,0.00070998,120]
[358400414,1745067080496,-162.257349,0.00070998,120]
[358400415,1745067080505,-151.0,0.00070998,120]
[358400416,1745067080515,-50000.0,0.00071,71]
[358400417,1745067080525,-856.42207,0.00071,60]
[358400418,1745067080534,-900.0,0.00071,72]
[358400419,1745067080543,-1000.0,0.00071,120]
[358400420,1745067080553,-208.38313425,0.00071,120]
[358400421,1745067080563,-1000.0,0.00071085,120]
[358400422,1745067080573,-5000.0,0.0007123,120]
[358400423,1745067080585,-150.0,0.00071232,120]
[358400424,1745067080596,-600.0,0.00071233,120]
[358400425,1745067080610,-600.0,0.00071233,120]
[358400426,1745067080619,-2700.0,0.00071304,120]
[358400427,1745067080629,-175866.20651702,0.000715,2]
[358400428,1745067080639,-1000000.0,0.000715,120]
[358400429,1745067080650,-154859.905406,0.00071651,7]
[358400430,1745067080659,-206.71414774,0.00071873,120]
[358400431,1745067080668,-150.0,0.00071873,120]
[358400432,1745067080679,-150.0,0.00071873,120]
[358400433,1745067080689,-150.0,0.00071873,120]
[358400434,1745067080697,-150.0,0.00071873,120]
[358400435,1745067080707,-150.0,0.00071873,120]
[358400436,1745067080717,-150.0,0.00071873,120]
[358400437,1745067080728,-206.71414774,0.00071954,120]
[358400438,1745067080737,-50000.0,0.00072,72]
[358400439,1745067080746,-150.0,0.00072,120]
[358400440,1745067080755,-1000.0,0.00072,120]
[358400441,1745067080765,-250000.0,0.00072,120]
[358400442,1745067080775,-226.5,0.00072,120]
[358400443,1745067080784,-162.257349,0.00072,120]
[358400444,1745067080793,-162.257349,0.00072,120]
[358400445,1745067080803,-151.0,0.00072,120]
[358400446,1745067080813,-206.71414774,0.00072034,120]
[358400447,1745067080823,-150.0,0.00072039,120]
[358400448,1745067080832,-150.0,0.00072094,120]
[358400449,1745067080843,-206.71414774,0.00072115,120]
[358400450,1745067080853,-150.0,0.00072127,120]
[358400451,1745067080864,-2700.0,0.00072189,120]
[358400452,1745067080875,-206.71414774,0.00072196,120]
[358400453,1745067080885,-150.0,0.00072206,120]
[358400454,1745067080895,-150.0,0.00072206,120]
[358400455,1745067080907,-150.0,0.00072241,120]
[358400456,1745067080916,-800.0,0.00072247,120]
[358400457,1745067080927,-150.0,0.00072253,120]
[358400458,1745067080936,-206.71414774,0.00072276,120]
[358400459,1745067080945,-150.0,0.00072281,120]
[358400460,1745067080955,-150.0,0.00072309,120]
[358400461,1745067080964,-800.0,0.00072324,120]
[358400462,1745067080975,-206.71414774,0.00072357,120]
[358400463,1745067080986,-150.0,0.00072372,120]
[358400464,1745067080996,-150.0,0.0007238,120]
[358400465,1745067081005,-342.25311896,0.00072408,120]
[358400466,1745067081014,-545.06900729,0.0007241,120]
[358400467,1745067081025,-206.71414774,0.00072438,120]
[358400468,1745067081036,-150.0,0.0007247,120]
[358400469,1745067081046,-800.0,0.00072487,120]
[358400470,1745067081056,-1000.0,0.000725,120]
[358400471,1745067081065,-1000000.0,0.000725,120]
[358400472,1745067081075,-1000000.0,0.000725,120]
[358400473,1745067081085,-1000000.0,0.000725,120]
[358400474,1745067081095,-1000000.0,0.000725,120]
[358400475,1745067081105,-300.0,0.000725,120]
[358400476,1745067081116,-162.257349,0.000725,120]
[358400477,1745067081127,-162.257354,0.000725,120]
[358400478,1745067081139,-154.679048,0.000725,120]
[358400479,1745067081149,-150.0,0.00072507,120]
[358400480,1745067081159,-206.71414774,0.00072518,120]
[358400481,1745067081169,-150.0,0.00072524,120]
[358400482,1745067081178,-150.0,0.00072539,120]
[358400483,1745067081187,-150.0,0.00072539,120]
[358400484,1745067081198,-790.79197937,0.00072581,120]
[358400485,1745067081208,-206.71414774,0.00072599,120]
[358400486,1745067081218,-150.0,0.00072602,120]
[358400487,1745067081228,-150.0,0.00072634,120]
[358400488,1745067081238,-150.0,0.00072672,120]
[358400489,1745067081248,-206.71414774,0.0007268,120]
[358400490,1745067081257,-150.0,0.00072705,120]
[358400491,1745067081267,-206.71414774,0.0007276,120]
[358400492,1745067081276,-150.0,0.0007276,120]
[358400493,1745067081286,-206.71414774,0.00072841,120]
[358400494,1745067081296,-150.0,0.00072871,120]
[358400495,1745067081305,-150.0,0.00072871,120]
[358400496,1745067081315,-150.0,0.00072887,120]
[358400497,1745067081325,-500.0,0.00072909,120]
[358400498,1745067081334,-206.71414774,0.00072922,120]
[358400499,1745067081344,-50000.0,0.00073,73]
[358400500,1745067081353,-1000.0,0.00073,120]
[358400501,1745067081362,-23404.89192144,0.00073,120]
[358400502,1745067081372,-500.0,0.00073,120]
[358400503,1745067081381,-206.71414774,0.00073002,120]
[358400504,1745067081391,-150.0,0.00073014,120]
[358400505,1745067081401,-150.0,0.00073014,120]
[358400506,1745067081410,-150.0,0.00073038,120]
[358400507,1745067081420,-206.71414774,0.00073083,120]
[358400508,1745067081430,-150.0,0.00073141,120]
[358400509,1745067081439,-206.71414774,0.00073164,120]
[358400510,1745067081449,-150.0,0.00073204,120]
[358400511,1745067081458,-150.0,0.00073204,120]
[358400512,1745067081466,-206.71414774,0.00073244,120]
[358400513,1745067081475,-500.0,0.00073257,120]
[358400514,1745067081484,-150.0,0.00073267,120]
[358400515,1745067081493,-150.0,0.00073312,120]
[358400516,1745067081503,-206.71414774,0.00073325,120]
[358400517,1745067081512,-150.0,0.0007337,120]
[358400518,1745067081522,-800.0,0.00073375,120]
[358400519,1745067081531,-150.0,0.00073394,120]
[358400520,1745067081540,-206.71414774,0.00073406,120]
[358400521,1745067081550,-2500.0,0.0007343,120]
[358400522,1745067081559,-17008.0,0.00073433,30]
[358400523,1745067081568,-150.0,0.0007347,120]
[358400524,1745067081577,-206.71414774,0.00073486,120]
[358400525,1745067081587,-687.316009,0.000735,120]
[358400526,1745067081596,-150.0,0.00073521,120]
[358400527,1745067081606,-500.0,0.0007353,120]
[358400528,1745067081618,-150.0,0.00073537,120]
[358400529,1745067081627,-150.0,0.00073537,120]
[358400530,1745067081636,-206.71414774,0.00073567,120]
[358400531,1745067081646,-500.0,0.00073607,120]
[358400532,1745067081656,-206.71414774,0.00073648,120]
[358400533,1745067081665,-150.0,0.00073648,120]
[358400534,1745067081674,-500.0,0.00073651,120]
[358400535,1745067081683,-150.0,0.00073654,120]
[358400536,1745067081692,-150.0,0.00073703,120]
[358400537,1745067081702,-206.71414774,0.00073728,120]
[358400538,1745067081712,-150.0,0.00073775,120]
[358400539,1745067081721,-500.0,0.00073797,120]
[358400540,1745067081730,-206.71414774,0.00073809,120]
[358400541,1745067081739,-150.0,0.00073823,120]
[358400542,1745067081749,-800.0,0.00073834,120]
[358400543,1745067081759,-150.0,0.0007387,120]
[358400544,1745067081768,-150.0,0.0007387,120]
[358400545,1745067081777,-206.71414774,0.0007389,120]
[358400546,1745067081787,-150.0,0.00073901,120]
[358400547,1745067081796,-206.71414774,0.0007397,120]
[358400548,1745067081805,-150.0,0.00073972,120]
[358400549,1745067081815,-150.0,0.00073983,120]
[358400550,1745067081824,-50000.0,0.00074,74]
[358400551,1745067081833,-246.88757319,0.0007401,120]
[358400552,1745067081842,-150.0,0.00074028,120]
[358400553,1745067081851,-150.0,0.00074036,120]
[358400554,1745067081861,-206.71414774,0.00074051,120]
[358400555,1745067081870,-2700.0,0.00074054,120]
[358400556,1745067081879,-206.71414774,0.00074132,120]
[358400557,1745067081888,-150.0,0.00074155,120]
[358400558,1745067081898,-150.0,0.00074202,120]
[358400559,1745067081907,-150.0,0.00074202,120]
[358400560,1745067081916,-206.71414774,0.00074212,120]
[358400561,1745067081925,-150.0,0.00074254,120]
[358400562,1745067081934,-2700.0,0.00074264,120]
[358400563,1745067081944,-150.0,0.00074269,120]
[358400564,1745067081953,-206.71414774,0.00074293,120]
[358400565,1745067081962,-150.0,0.00074369,120]
[358400566,1745067081971,-206.71414774,0.00074374,120]
[358400567,1745067081980,-500.0,0.00074423,120]
[358400568,1745067081989,-206.71414774,0.00074454,120]
[358400569,1745067081998,-816.14,0.000745,72]
[358400570,1745067082008,-816.14,0.000745,72]
[358400571,1745067082017,-816.14,0.000745,72]
[358400572,1745067082025,-816.14,0.000745,72]
[358400573,1745067082034,-816.14,0.000745,72]
[358400574,1745067082043,-816.14,0.000745,72]
[358400575,1745067082052,-816.14,0.000745,72]
[358400576,1745067082146,-816.14,0.000745,72]
[358400577,1745067082156,-816.14,0.000745,72]
[358400578,1745067082165,-816.14,0.000745,72]
[358400579,1745067082175,-816.14,0.000745,72]
[358400580,1745067082184,-816.14,0.000745,72]
[358400581,1745067082193,-206.71414774,0.00074535,120]
[358400582,1745067082202,-150.0,0.00074535,120]
[358400583,1745067082211,-150.0,0.00074535,120]
[358400584,1745067082221,-206.71414774,0.00074616,120]
[358400585,1745067082230,-2700.0,0.00074629,120]
[358400586,1745067082239,-206.71414774,0.00074696,120]
[358400587,1745067082249,-2000.0,0.000747,120]
[358400588,1745067082258,-150.0,0.00074701,120]
[358400589,1745067082268,-500.0,0.00074719,120]
[358400590,1745067082277,-206.71414774,0.00074777,120]
[358400591,1745067082287,-250.0,0.000748,30]
[358400592,1745067082296,-206.71414774,0.00074858,120]
[358400593,1745067082305,-150.0,0.00074868,120]
[358400594,1745067082314,-150.0,0.00074868,120]
[358400595,1745067082324,-800.0,0.00074872,120]
[358400596,1745067082334,-206.71414774,0.00074938,120]
[358400597,1745067082343,-27000.0,0.0007499,12]
[358400598,1745067082352,-50000.0,0.00075,75]
[358400599,1745067082361,-1000.0,0.00075,120]
[358400600,1745067082371,-10000.0,0.00075,120]
[358400601,1745067082380,-1000000.0,0.00075,120]
[358400602,1745067082390,-1000000.0,0.00075,120]
[358400603,1745067082401,-1000000.0,0.00075,120]
[358400604,1745067082411,-250000.0,0.00075,120]
[358400605,1745067082420,-320.0,0.00075,120]
[358400606,1745067082430,-250.0,0.00075,120]
[358400607,1745067082440,-2996699.98367855,0.00075,60]
[358400608,1745067082449,-206.71414774,0.00075019,120]
[358400609,1745067082459,-20000.0,0.00075023,5]
[358400610,1745067082468,-150.0,0.00075034,120]
[358400611,1745067082479,-150.0,0.00075067,120]
[358400612,1745067082489,-206.71414774,0.000751,120]
[358400613,1745067082497,-500.0,0.00075123,120]
[358400614,1745067082506,-800.0,0.00075157,120]
[358400615,1745067082516,-206.71414774,0.0007518,120]
[358400616,1745067082525,-150.0,0.00075201,120]
[358400617,1745067082534,-150.0,0.00075201,120]
[358400618,1745067082544,-500.0,0.00075231,120]
[358400619,1745067082553,-206.71414774,0.00075261,120]
[358400620,1745067082562,-206.71414774,0.00075342,120]
[358400621,1745067082573,-150.0,0.00075342,120]
[358400622,1745067082585,-2700.0,0.00075353,120]
[358400623,1745067082595,-150.0,0.00075367,120]
[358400624,1745067082609,-206.71414774,0.00075422,120]
[358400625,1745067082620,-500.0,0.00075452,120]
[358400626,1745067082629,-500.0,0.00075461,120]
[358400627,1745067082639,-206.71414774,0.00075503,120]
[358400628,1745067082649,-150.0,0.00075533,120]
[358400629,1745067082659,-150.0,0.00075533,120]
[358400630,1745067082670,-206.71414774,0.00075584,120]
[358400631,1745067082680,-206.71414774,0.00075664,120]
[358400632,1745067082690,-150.0,0.000757,120]
[358400633,1745067082699,-603.11774535,0.00075714,120]
[358400634,1745067082708,-206.71414774,0.00075745,120]
[358400635,1745067082717,-206.71414774,0.00075826,120]
[358400636,1745067082728,-150.0,0.00075866,120]
[358400637,1745067082737,-150.0,0.00075866,120]
[358400638,1745067082747,-150.0,0.00075866,120]
[358400639,1745067082756,-150.0,0.00075877,120]
[358400640,1745067082765,-515.21319215,0.00075901,120]
[358400641,1745067082775,-206.71414774,0.00075906,120]
[358400642,1745067082785,-30106.43562535,0.00075945,120]
[358400643,1745067082794,-206.71414774,0.00075987,120]
[358400644,1745067082804,-50000.0,0.00076,76]
[358400645,1745067082813,-250.0,0.00076,120]
[358400646,1745067082822,-150.0,0.00076032,120]
[358400647,1745067082831,-206.71414774,0.00076068,120]
[358400648,1745067082842,-500.0,0.0007612,120]
[358400649,1745067082851,-500.0,0.00076147,120]
[358400650,1745067082860,-206.71414774,0.00076148,120]
[358400651,1745067082870,-500.0,0.00076158,120]
[358400652,1745067082880,-150.0,0.00076199,120]
[358400653,1745067082889,-150.0,0.00076199,120]
[358400654,1745067082899,-206.71414774,0.00076229,120]
[358400655,1745067082909,-800.0,0.00076299,120]
[358400656,1745067082918,-206.71414774,0.0007631,120]
[358400657,1745067082928,-150.0,0.00076365,120]
[358400658,1745067082937,-206.71414774,0.0007639,120]
[358400659,1745067082947,-500.0,0.0007644,120]
[358400660,1745067082956,-150.0,0.00076463,120]
[358400661,1745067082966,-206.71414774,0.00076471,120]
[358400662,1745067082975,-150.0,0.00076532,120]
[358400663,1745067082985,-150.0,0.00076532,120]
[358400664,1745067082994,-150.0,0.00076534,120]
[358400665,1745067083003,-206.71414774,0.00076552,120]
[358400666,1745067083012,-206.71414774,0.00076632,120]
[358400667,1745067083021,-150.0,0.00076665,120]
[358400668,1745067083030,-150.0,0.00076698,120]
[358400669,1745067083040,-150.0,0.00076712,120]
[358400670,1745067083049,-600.0,0.00076712,120]
[358400671,1745067083058,-600.0,0.00076712,120]
[358400672,1745067083067,-206.71414774,0.00076713,120]
[358400673,1745067083076,-206.71414774,0.00076794,120]
[358400674,1745067083086,-150.0,0.00076864,120]
[358400675,1745067083095,-150.0,0.00076864,120]
[358400676,1745067083105,-206.71414774,0.00076874,120]
[358400677,1745067083114,-2500.0,0.0007693,120]
[358400678,1745067083123,-206.71414774,0.00076955,120]
[358400679,1745067083132,-50000.0,0.00077,77]
[358400680,1745067083141,-1000000.0,0.00077,120]
[358400681,1745067083151,-1000000.0,0.00077,120]
[358400682,1745067083160,-150.0,0.00077031,120]
[358400683,1745067083170,-206.71414774,0.00077036,120]
[358400684,1745067083179,-206.71414774,0.00077116,120]
[358400685,1745067083188,-206.71414774,0.00077197,120]
[358400686,1745067083197,-150.0,0.00077197,120]
[358400687,1745067083206,-150.0,0.00077197,120]
[358400688,1745067083215,-496852.0,0.0007722,30]
[358400689,1745067083225,-206.71414774,0.00077278,120]
[358400690,1745067083234,-206.71414774,0.00077358,120]
[358400691,1745067083243,-150.0,0.00077363,120]
[358400692,1745067083253,-2700.0,0.0007739,120]
[358400693,1745067083262,-206.71414774,0.00077439,120]
[358400694,1745067083271,-150.0,0.00077463,120]
[358400695,1745067083280,-2000.0,0.000775,120]
[358400696,1745067083290,-206.71414774,0.0007752,120]
[358400697,1745067083299,-150.0,0.0007753,120]
[358400698,1745067083308,-150.0,0.0007753,120]
[358400699,1745067083317,-500.0,0.00077589,120]
[358400700,1745067083327,-206.71414774,0.000776,120]
[358400701,1745067083336,-206.71414774,0.00077681,120]
[358400702,1745067083345,-150.0,0.00077696,120]
[358400703,1745067083354,-206.71414774,0.00077762,120]
[358400704,1745067083363,-500.0,0.0007783,120]
[358400705,1745067083373,-206.71414774,0.00077842,120]
[358400706,1745067083383,-150.0,0.00077863,120]
[358400707,1745067083393,-150.0,0.00077863,120]
[358400708,1745067083403,-646.70432054,0.0007789,50]
[358400709,1745067083412,-206.71414774,0.00077923,120]
[358400710,1745067083422,-150.0,0.00077924,120]
[358400711,1745067083431,-50000.0,0.00078,78]
[358400712,1745067083441,-250000.0,0.00078,120]
[358400713,1745067083450,-206.71414774,0.00078004,120]
[358400714,1745067083460,-150.0,0.00078029,120]
[358400715,1745067083469,-150.0,0.00078082,120]
[358400716,1745067083479,-206.71414774,0.00078084,120]
[358400717,1745067083489,-206.71414774,0.00078165,120]
[358400718,1745067083499,-800.0,0.00078173,120]
[358400719,1745067083508,-150.0,0.00078195,120]
[358400720,1745067083518,-150.0,0.00078195,120]
[358400721,1745067083527,-206.71414774,0.00078246,120]
[358400722,1745067083536,-150.0,0.00078262,120]
[358400723,1745067083545,-500.0,0.00078264,120]
[358400724,1745067083555,-206.71414774,0.00078326,120]
[358400725,1745067083564,-150.0,0.00078362,120]
[358400726,1745067083574,-500.0,0.00078366,120]
[358400727,1745067083583,-206.71414774,0.00078407,120]
[358400728,1745067083593,-206.71414774,0.00078488,120]
[358400729,1745067083604,-988.45833251,0.00078516,120]
[358400730,1745067083615,-150.0,0.00078528,120]
[358400731,1745067083624,-150.0,0.00078528,120]
[358400732,1745067083633,-840.68931285,0.00078537,120]
[358400733,1745067083722,-206.71414774,0.00078568,120]
[358400734,1745067083733,-206.71414774,0.00078649,120]
[358400735,1745067083742,-150.0,0.00078694,120]
[358400736,1745067083751,-206.71414774,0.0007873,120]
[358400737,1745067083761,-206.71414774,0.0007881,120]
[358400738,1745067083770,-150.0,0.00078836,120]
[358400739,1745067083779,-150.0,0.00078861,120]
[358400740,1745067083789,-150.0,0.00078861,120]